[Event "Late-Titled-Tuesday-Blitz-July-09-2024"]
[Site "Chess.com"]
[Date "2024.07.09"]
[Round "6"]
[White "Nemsko"]
[Black "Maluco_do_Natal_00"]
[Result "0-1"]
[WhiteElo "2294"]
[BlackElo "2011"]
[TimeControl "180+1"]
[EndTime "15:05:44 PDT"]
[Termination "Maluco_do_Natal_00 won on time"]

1. e4 {[%clk 0:03:00.9]} 1... c5 {[%clk 0:02:58]} 2. Nf3 {[%clk 0:02:59.4]} 2...
Nc6 {[%clk 0:02:56.4]} 3. d4 {[%clk 0:02:58.1]} 3... cxd4 {[%clk 0:02:55.6]} 4.
Nxd4 {[%clk 0:02:59]} 4... Nf6 {[%clk 0:02:54.9]} 5. Nc3 {[%clk 0:02:58.2]} 5...
e5 {[%clk 0:02:54.6]} 6. Ndb5 {[%clk 0:02:56.8]} 6... d6 {[%clk 0:02:54.5]} 7.
Bg5 {[%clk 0:02:55.1]} 7... a6 {[%clk 0:02:54.5]} 8. Na3 {[%clk 0:02:54.8]} 8...
b5 {[%clk 0:02:54.8]} 9. Nd5 {[%clk 0:02:41.9]} 9... Be7 {[%clk 0:02:52.5]} 10.
Bxf6 {[%clk 0:02:39.1]} 10... Bxf6 {[%clk 0:02:52.6]} 11. c3 {[%clk 0:02:34.1]}
11... O-O {[%clk 0:02:49.5]} 12. Nc2 {[%clk 0:02:28.9]} 12... Bg5 {[%clk
0:02:49.4]} 13. h4 {[%clk 0:02:27.9]} 13... Bh6 {[%clk 0:02:49.2]} 14. Nce3
{[%clk 0:02:21]} 14... Be6 {[%clk 0:02:43.3]} 15. g3 {[%clk 0:02:17]} 15... Ne7
{[%clk 0:02:36.4]} 16. Bg2 {[%clk 0:02:07.1]} 16... Bxe3 {[%clk 0:02:33.2]} 17.
Nxe3 {[%clk 0:02:06.2]} 17... Rc8 {[%clk 0:02:16.1]} 18. O-O {[%clk 0:01:59.3]}
18... Qd7 {[%clk 0:01:56.4]} 19. Qd2 {[%clk 0:01:46.4]} 19... Rfd8 {[%clk
0:01:47.6]} 20. Nd5 {[%clk 0:01:33.9]} 20... Nxd5 {[%clk 0:01:44.8]} 21. exd5
{[%clk 0:01:32.4]} 21... Bh3 {[%clk 0:01:44]} 22. Rae1 {[%clk 0:01:14.7]} 22...
Re8 {[%clk 0:01:32.2]} 23. Kh2 {[%clk 0:00:58.5]} 23... Bxg2 {[%clk 0:01:31.4]}
24. Kxg2 {[%clk 0:00:59.4]} 24... f5 {[%clk 0:01:25.8]} 25. Qd3 {[%clk
0:00:51.3]} 25... Rf8 {[%clk 0:01:22.7]} 26. f4 {[%clk 0:00:49.4]} 26... e4
{[%clk 0:01:20]} 27. Qe3 {[%clk 0:00:49.6]} 27... Qb7 {[%clk 0:01:18.2]} 28. Rd1
{[%clk 0:00:49.5]} 28... Rc5 {[%clk 0:01:17.9]} 29. Qd4 {[%clk 0:00:47.4]} 29...
Rc4 {[%clk 0:01:12.9]} 30. Qe3 {[%clk 0:00:47.7]} 30... Rc5 {[%clk 0:01:09.7]}
31. Qd4 {[%clk 0:00:47.2]} 31... Rc4 {[%clk 0:01:09.5]} 32. Qd2 {[%clk
0:00:44.5]} 32... Re8 {[%clk 0:01:06.1]} 33. Rfe1 {[%clk 0:00:43.9]} 33... b4
{[%clk 0:00:54.8]} 34. cxb4 {[%clk 0:00:37.6]} 34... Rxb4 {[%clk 0:00:52.2]} 35.
b3 {[%clk 0:00:34.2]} 35... Rb5 {[%clk 0:00:49.3]} 36. Re3 {[%clk 0:00:33]}
36... Rc8 {[%clk 0:00:47.8]} 37. Qd4 {[%clk 0:00:14.3]} 37... Rbc5 {[%clk
0:00:41]} 38. Rd2 {[%clk 0:00:11.4]} 38... Rc1 {[%clk 0:00:34]} 39. g4 {[%clk
0:00:07.2]} 39... Qb5 {[%clk 0:00:32]} 40. Rd1 {[%clk 0:00:03.9]} 40... R1c2+
{[%clk 0:00:29.2]} 41. Rd2 {[%clk 0:00:03.7]} 41... Rc1 {[%clk 0:00:29.4]} 42.
Rd1 {[%clk 0:00:04.1]} 42... R8c2+ {[%clk 0:00:29.1]} 43. Kg3 {[%clk 0:00:03.8]}
43... Rxd1 {[%clk 0:00:16.7]} 44. Qxd1 {[%clk 0:00:04.7]} 44... Rc5 {[%clk
0:00:14.7]} 45. gxf5 {[%clk 0:00:04.7]} 45... Rxd5 {[%clk 0:00:14.7]} 46. Qe2
{[%clk 0:00:03.6]} 46... Rd3 {[%clk 0:00:12.4]} 47. Kg4 {[%clk 0:00:02.1]} 47...
d5 {[%clk 0:00:10]} 48. f6 {[%clk 0:00:01.2]} 48... gxf6 {[%clk 0:00:09.6]} 49.
Rg3 {[%clk 0:00:01]} 49... Kf7 {[%clk 0:00:08.8]} 0-1

[Event "Late-Titled-Tuesday-Blitz-July-09-2024"]
[Site "Chess.com"]
[Date "2024.07.09"]
[Round "6"]
[White "Kirill_Klukin"]
[Black "Sek_Konstantin"]
[Result "0-1"]
[WhiteElo "2919"]
[BlackElo "2738"]
[TimeControl "180+1"]
[EndTime "15:05:48 PDT"]
[Termination "Sek_Konstantin won on time"]

1. d4 {[%clk 0:03:00.9]} 1... Nf6 {[%clk 0:02:59.5]} 2. Nf3 {[%clk 0:03:01.4]}
2... e6 {[%clk 0:02:58.8]} 3. e3 {[%clk 0:03:01.9]} 3... c5 {[%clk 0:02:58.5]}
4. Bd3 {[%clk 0:03:02.5]} 4... d5 {[%clk 0:02:58.1]} 5. b3 {[%clk 0:03:02]} 5...
Nc6 {[%clk 0:02:58.7]} 6. Bb2 {[%clk 0:03:02.4]} 6... Bd6 {[%clk 0:02:58.4]} 7.
O-O {[%clk 0:03:02.7]} 7... Qc7 {[%clk 0:02:58]} 8. a3 {[%clk 0:03:01.8]} 8...
e5 {[%clk 0:02:57.1]} 9. dxc5 {[%clk 0:02:26.9]} 9... Bxc5 {[%clk 0:02:56.5]}
10. Bb5 {[%clk 0:02:27]} 10... Bd6 {[%clk 0:02:42]} 11. c4 {[%clk 0:01:46.7]}
11... dxc4 {[%clk 0:02:39.5]} 12. Nbd2 {[%clk 0:01:41.5]} 12... c3 {[%clk
0:02:06.2]} 13. Bxc3 {[%clk 0:01:40]} 13... O-O {[%clk 0:01:59]} 14. Nc4 {[%clk
0:01:35]} 14... Rd8 {[%clk 0:01:24.3]} 15. Nxd6 {[%clk 0:01:33.2]} 15... Rxd6
{[%clk 0:01:24.5]} 16. Qe2 {[%clk 0:01:33.8]} 16... Bg4 {[%clk 0:01:21.2]} 17.
h3 {[%clk 0:01:23.7]} 17... Bh5 {[%clk 0:01:16.2]} 18. e4 {[%clk 0:00:37.5]}
18... Nd4 {[%clk 0:01:14.6]} 19. Bxd4 {[%clk 0:00:37.9]} 19... Rxd4 {[%clk
0:01:14.5]} 20. Rac1 {[%clk 0:00:06.3]} 20... Qa5 {[%clk 0:01:02.3]} 21. Bc4
{[%clk 0:00:04.8]} 21... Qxa3 {[%clk 0:00:47.1]} 22. g4 {[%clk 0:00:04]} 22...
Rxe4 {[%clk 0:00:46.8]} 23. Qd3 {[%clk 0:00:04.3]} 23... Bg6 {[%clk 0:00:38.5]}
24. Qc3 {[%clk 0:00:04.8]} 24... Qe7 {[%clk 0:00:35.7]} 25. Rfe1 {[%clk
0:00:04.5]} 25... Re8 {[%clk 0:00:29.4]} 26. Nh4 {[%clk 0:00:03.1]} 26... Rxe1+
{[%clk 0:00:22.9]} 27. Rxe1 {[%clk 0:00:02.5]} 27... a6 {[%clk 0:00:15.9]} 28.
Qe3 {[%clk 0:00:02.2]} 28... b5 {[%clk 0:00:15]} 29. Bf1 {[%clk 0:00:02.9]}
29... Nd5 {[%clk 0:00:15.2]} 30. Qg3 {[%clk 0:00:03.6]} 30... Nf4 {[%clk
0:00:15]} 31. Ng2 {[%clk 0:00:04.3]} 31... Nxg2 {[%clk 0:00:11.3]} 32. Bxg2
{[%clk 0:00:05.2]} 32... h6 {[%clk 0:00:11.1]} 33. h4 {[%clk 0:00:05.8]} 33...
e4 {[%clk 0:00:11]} 34. Re3 {[%clk 0:00:06.1]} 34... Qc5 {[%clk 0:00:09]} 35.
Kh2 {[%clk 0:00:06]} 35... Qe5 {[%clk 0:00:05.9]} 36. f4 {[%clk 0:00:06.4]}
36... Qd4 {[%clk 0:00:04.8]} 37. f5 {[%clk 0:00:06.8]} 37... Bh7 {[%clk
0:00:05.1]} 38. Qf4 {[%clk 0:00:06.6]} 38... h5 {[%clk 0:00:05.2]} 39. g5 {[%clk
0:00:02.8]} 39... Qe5 {[%clk 0:00:04.7]} 40. Kg3 {[%clk 0:00:03.6]} 40... Bxf5
{[%clk 0:00:03.9]} 41. Qxe5 {[%clk 0:00:04.1]} 41... Rxe5 {[%clk 0:00:04]} 42.
Kf4 {[%clk 0:00:05]} 42... f6 {[%clk 0:00:04.4]} 43. gxf6 {[%clk 0:00:04.4]}
43... gxf6 {[%clk 0:00:04.6]} 44. Rc3 {[%clk 0:00:05.1]} 44... Kf7 {[%clk
0:00:04.9]} 45. Bf1 {[%clk 0:00:05.4]} 45... Kg6 {[%clk 0:00:05]} 46. Be2 {[%clk
0:00:05.9]} 46... e3 {[%clk 0:00:05.4]} 47. Rc1 {[%clk 0:00:04.7]} 47... Bg4
{[%clk 0:00:05.4]} 48. Rg1 {[%clk 0:00:05.4]} 48... Rf5+ {[%clk 0:00:04.9]} 49.
Kxe3 {[%clk 0:00:05.7]} 49... Re5+ {[%clk 0:00:05.4]} 0-1

[Event "Late-Titled-Tuesday-Blitz-July-09-2024"]
[Site "Chess.com"]
[Date "2024.07.09"]
[Round "6"]
[White "axlbvRR"]
[Black "ZakinIlay2306"]
[Result "0-1"]
[WhiteElo "1946"]
[BlackElo "2306"]
[TimeControl "180+1"]
[EndTime "15:05:48 PDT"]
[Termination "ZakinIlay2306 won by checkmate"]

1. d4 {[%clk 0:02:53.5]} 1... Nf6 {[%clk 0:02:59]} 2. Bf4 {[%clk 0:02:53.7]}
2... g6 {[%clk 0:02:57.4]} 3. e3 {[%clk 0:02:53.3]} 3... Bg7 {[%clk 0:02:55.6]}
4. Nf3 {[%clk 0:02:53.6]} 4... O-O {[%clk 0:02:55.8]} 5. h3 {[%clk 0:02:54]}
5... d6 {[%clk 0:02:55.5]} 6. Be2 {[%clk 0:02:54.3]} 6... Nbd7 {[%clk
0:02:54.7]} 7. O-O {[%clk 0:02:53.8]} 7... b6 {[%clk 0:02:54.8]} 8. c4 {[%clk
0:02:53.9]} 8... Bb7 {[%clk 0:02:52.8]} 9. Nc3 {[%clk 0:02:53.9]} 9... Qe8
{[%clk 0:02:48.4]} 10. Bh2 {[%clk 0:02:53.1]} 10... e5 {[%clk 0:02:48.4]} 11.
Rc1 {[%clk 0:02:46.6]} 11... e4 {[%clk 0:02:36.8]} 12. Nd2 {[%clk 0:02:45.9]}
12... Qe7 {[%clk 0:02:34.1]} 13. Qc2 {[%clk 0:02:24.9]} 13... Rfe8 {[%clk
0:02:27.7]} 14. Nb5 {[%clk 0:02:24.4]} 14... Nf8 {[%clk 0:02:26.6]} 15. b4
{[%clk 0:02:15.7]} 15... h5 {[%clk 0:02:23.2]} 16. c5 {[%clk 0:02:11.5]} 16...
bxc5 {[%clk 0:01:51.9]} 17. bxc5 {[%clk 0:02:06.5]} 17... Rac8 {[%clk
0:01:37.8]} 18. Nxa7 {[%clk 0:02:01.7]} 18... d5 {[%clk 0:01:00.2]} 19. c6
{[%clk 0:01:29.5]} 19... Ra8 {[%clk 0:00:46.9]} 20. Nb5 {[%clk 0:01:15.3]} 20...
Ba6 {[%clk 0:00:41.9]} 21. a4 {[%clk 0:00:59.1]} 21... Ne6 {[%clk 0:00:35.3]}
22. Rfe1 {[%clk 0:00:52.5]} 22... g5 {[%clk 0:00:28.5]} 23. Be5 {[%clk
0:00:42.2]} 23... g4 {[%clk 0:00:18.3]} 24. hxg4 {[%clk 0:00:40.9]} 24... Nxg4
{[%clk 0:00:17.9]} 25. Bxg4 {[%clk 0:00:36.4]} 25... hxg4 {[%clk 0:00:15.9]} 26.
Nf1 {[%clk 0:00:22.4]} 26... Bxe5 {[%clk 0:00:09.3]} 27. dxe5 {[%clk 0:00:23.3]}
27... Qg5 {[%clk 0:00:09]} 28. Ng3 {[%clk 0:00:22.4]} 28... Qxe5 {[%clk
0:00:08.5]} 29. Qe2 {[%clk 0:00:19]} 29... f5 {[%clk 0:00:07.2]} 30. Qa2 {[%clk
0:00:16.1]} 30... Bxb5 {[%clk 0:00:06.7]} 31. Qb3 {[%clk 0:00:14.1]} 31... Bc4
{[%clk 0:00:06.3]} 32. Qb7 {[%clk 0:00:13.4]} 32... Reb8 {[%clk 0:00:06]} 33.
Qxb8+ {[%clk 0:00:12.4]} 33... Rxb8 {[%clk 0:00:06.9]} 34. Rb1 {[%clk
0:00:12.1]} 34... Rxb1 {[%clk 0:00:05.1]} 35. Rxb1 {[%clk 0:00:13]} 35... Qc3
{[%clk 0:00:04.1]} 36. Nf1 {[%clk 0:00:11.9]} 36... Bxf1 {[%clk 0:00:02.8]} 37.
Rxf1 {[%clk 0:00:11.2]} 37... Qxc6 {[%clk 0:00:03.7]} 38. Ra1 {[%clk 0:00:10.9]}
38... d4 {[%clk 0:00:03.9]} 39. a5 {[%clk 0:00:11.3]} 39... Qa6 {[%clk
0:00:03.3]} 40. exd4 {[%clk 0:00:10.9]} 40... Nxd4 {[%clk 0:00:04.2]} 41. Kh2
{[%clk 0:00:11.2]} 41... Nb3 {[%clk 0:00:04.6]} 42. Ra3 {[%clk 0:00:10.7]} 42...
Nxa5 {[%clk 0:00:05.5]} 43. Kg3 {[%clk 0:00:10.7]} 43... Qd6+ {[%clk 0:00:06]}
44. Kh4 {[%clk 0:00:10.4]} 44... Qxa3 {[%clk 0:00:05.8]} 45. Kg5 {[%clk
0:00:10.2]} 45... Qe7+ {[%clk 0:00:04.9]} 46. Kxf5 {[%clk 0:00:10.2]} 46... g3
{[%clk 0:00:05.4]} 47. fxg3 {[%clk 0:00:09.3]} 47... e3 {[%clk 0:00:05.8]} 48.
Kg4 {[%clk 0:00:09.5]} 48... e2 {[%clk 0:00:06]} 49. Kh3 {[%clk 0:00:10.4]}
49... e1=Q {[%clk 0:00:05.6]} 50. Kh2 {[%clk 0:00:11.3]} 50... Qg5 {[%clk
0:00:03.6]} 51. g4 {[%clk 0:00:11]} 51... Qgh4# {[%clk 0:00:03.6]} 0-1

[Event "Late-Titled-Tuesday-Blitz-July-09-2024"]
[Site "Chess.com"]
[Date "2024.07.09"]
[Round "6"]
[White "Rud_Makarian"]
[Black "GoltsevDmitry2000"]
[Result "1/2-1/2"]
[WhiteElo "2982"]
[BlackElo "2785"]
[TimeControl "180+1"]
[EndTime "15:05:49 PDT"]
[Termination "Game drawn by repetition"]

1. Nf3 {[%clk 0:03:00.9]} 1... d5 {[%clk 0:02:05.8]} 2. c4 {[%clk 0:02:59.8]}
2... dxc4 {[%clk 0:02:05.6]} 3. e3 {[%clk 0:02:59.9]} 3... Nf6 {[%clk
0:02:05.9]} 4. Bxc4 {[%clk 0:03:00.5]} 4... e6 {[%clk 0:02:06.5]} 5. O-O {[%clk
0:03:01.1]} 5... a6 {[%clk 0:02:07]} 6. d4 {[%clk 0:03:01.6]} 6... b5 {[%clk
0:02:07.4]} 7. Bd3 {[%clk 0:03:02.3]} 7... Bb7 {[%clk 0:02:08]} 8. a4 {[%clk
0:03:03.1]} 8... bxa4 {[%clk 0:02:06.7]} 9. Rxa4 {[%clk 0:03:01.6]} 9... Nbd7
{[%clk 0:02:06.9]} 10. Qe2 {[%clk 0:02:56.3]} 10... a5 {[%clk 0:02:01.7]} 11.
Bd2 {[%clk 0:02:48.4]} 11... c6 {[%clk 0:01:54]} 12. Na3 {[%clk 0:02:44.4]}
12... Nb6 {[%clk 0:01:51.3]} 13. Rxa5 {[%clk 0:02:41.2]} 13... Nbd5 {[%clk
0:01:45.7]} 14. Rxa8 {[%clk 0:02:40.9]} 14... Qxa8 {[%clk 0:01:46.6]} 15. e4
{[%clk 0:02:39.6]} 15... Nb4 {[%clk 0:01:44.6]} 16. Bc4 {[%clk 0:02:32.7]} 16...
Be7 {[%clk 0:01:43.3]} 17. Ra1 {[%clk 0:02:32]} 17... Qb8 {[%clk 0:01:35.9]} 18.
Bg5 {[%clk 0:02:24.9]} 18... O-O {[%clk 0:01:30.2]} 19. e5 {[%clk 0:02:22.9]}
19... Nfd5 {[%clk 0:01:29.2]} 20. Bxe7 {[%clk 0:02:10.9]} 20... Nxe7 {[%clk
0:01:27.5]} 21. Qd2 {[%clk 0:02:03.6]} 21... c5 {[%clk 0:01:23.5]} 22. dxc5
{[%clk 0:01:56.4]} 22... Bxf3 {[%clk 0:01:22.7]} 23. gxf3 {[%clk 0:01:57.3]}
23... Nbc6 {[%clk 0:01:22]} 24. Be2 {[%clk 0:01:46.7]} 24... Nxe5 {[%clk
0:01:17.9]} 25. b4 {[%clk 0:01:45]} 25... Rd8 {[%clk 0:01:08.6]} 26. Qc3 {[%clk
0:01:44.8]} 26... Nd5 {[%clk 0:01:08.6]} 27. Qb2 {[%clk 0:01:28]} 27... Nf4
{[%clk 0:01:06.3]} 28. Nc4 {[%clk 0:01:10.4]} 28... Nxc4 {[%clk 0:00:45.2]} 29.
Bxc4 {[%clk 0:01:09.3]} 29... h6 {[%clk 0:00:35.5]} 30. Bf1 {[%clk 0:01:03.2]}
30... Rd5 {[%clk 0:00:33.3]} 31. c6 {[%clk 0:00:55.4]} 31... Rh5 {[%clk
0:00:30.7]} 32. h3 {[%clk 0:00:37.6]} 32... Nxh3+ {[%clk 0:00:28.7]} 33. Bxh3
{[%clk 0:00:37.3]} 33... Rxh3 {[%clk 0:00:29.6]} 34. Qc3 {[%clk 0:00:31.8]}
34... Qc7 {[%clk 0:00:04.1]} 35. b5 {[%clk 0:00:27.5]} 35... Rh5 {[%clk
0:00:04.6]} 36. b6 {[%clk 0:00:14.5]} 36... Rg5+ {[%clk 0:00:05.1]} 37. Kf1
{[%clk 0:00:14]} 37... Qxb6 {[%clk 0:00:04.9]} 38. c7 {[%clk 0:00:14.6]} 38...
Qb5+ {[%clk 0:00:05.3]} 39. Ke1 {[%clk 0:00:14.8]} 39... Re5+ {[%clk 0:00:05.4]}
40. Kd2 {[%clk 0:00:13.8]} 40... Qe2+ {[%clk 0:00:05.4]} 41. Kc1 {[%clk
0:00:14.1]} 41... Qf1+ {[%clk 0:00:05.1]} 42. Kb2 {[%clk 0:00:13.5]} 42... Qxf2+
{[%clk 0:00:04.6]} 43. Ka3 {[%clk 0:00:09.2]} 43... Qa7+ {[%clk 0:00:05.2]} 44.
Kb2 {[%clk 0:00:05.1]} 44... Qf2+ {[%clk 0:00:05.2]} 45. Kb3 {[%clk 0:00:05.1]}
45... Qb6+ {[%clk 0:00:05]} 46. Kc2 {[%clk 0:00:03.6]} 46... Qf2+ {[%clk
0:00:03.1]} 47. Kb3 {[%clk 0:00:03.7]} 47... Qb6+ {[%clk 0:00:03.7]} 48. Kc2
{[%clk 0:00:01.6]} 48... Qf2+ {[%clk 0:00:03.9]} 49. Kb3 {[%clk 0:00:02.1]}
1/2-1/2

[Event "Late-Titled-Tuesday-Blitz-July-09-2024"]
[Site "Chess.com"]
[Date "2024.07.09"]
[Round "6"]
[White "Nbk90"]
[Black "Al_Shima"]
[Result "0-1"]
[WhiteElo "2243"]
[BlackElo "2484"]
[TimeControl "180+1"]
[EndTime "15:05:49 PDT"]
[Termination "Al_Shima won by resignation"]

1. e4 {[%clk 0:03:00.9]} 1... d5 {[%clk 0:02:59.2]} 2. exd5 {[%clk 0:02:59.6]}
2... Nf6 {[%clk 0:02:59.1]} 3. Nc3 {[%clk 0:02:59.4]} 3... Nxd5 {[%clk 0:02:59]}
4. Nxd5 {[%clk 0:02:57.8]} 4... Qxd5 {[%clk 0:02:58.5]} 5. d4 {[%clk 0:02:54.2]}
5... Nc6 {[%clk 0:02:57.8]} 6. c3 {[%clk 0:02:53.5]} 6... e5 {[%clk 0:02:57.1]}
7. dxe5 {[%clk 0:02:50.5]} 7... Qxd1+ {[%clk 0:02:56.3]} 8. Kxd1 {[%clk
0:02:51.4]} 8... Nxe5 {[%clk 0:02:56.5]} 9. Bf4 {[%clk 0:02:49.3]} 9... Bg4+
{[%clk 0:02:52]} 10. f3 {[%clk 0:02:47.2]} 10... O-O-O+ {[%clk 0:02:51.3]} 11.
Ke2 {[%clk 0:02:22.6]} 11... Ng6 {[%clk 0:02:32.2]} 12. Be3 {[%clk 0:02:15.2]}
12... Bf5 {[%clk 0:02:22.2]} 13. Kf2 {[%clk 0:02:12.1]} 13... Be7 {[%clk
0:02:12.1]} 14. Bc4 {[%clk 0:02:09.8]} 14... Ne5 {[%clk 0:02:08.4]} 15. Be2
{[%clk 0:02:01.4]} 15... Nd3+ {[%clk 0:02:03.7]} 16. Bxd3 {[%clk 0:01:58.9]}
16... Rxd3 {[%clk 0:02:02.9]} 17. Ne2 {[%clk 0:01:59.3]} 17... Re8 {[%clk
0:02:00.7]} 18. Nd4 {[%clk 0:01:54.4]} 18... Bh4+ {[%clk 0:01:31]} 19. g3 {[%clk
0:01:43.7]} 19... Rdxe3 {[%clk 0:01:17.4]} 20. gxh4 {[%clk 0:01:43.1]} 20... Bd7
{[%clk 0:01:11.9]} 21. Rhe1 {[%clk 0:01:36.1]} 21... Rxe1 {[%clk 0:01:11]} 22.
Rxe1 {[%clk 0:01:36]} 22... Rxe1 {[%clk 0:01:11.9]} 23. Kxe1 {[%clk 0:01:35.5]}
23... c5 {[%clk 0:01:12.8]} 24. Nb3 {[%clk 0:01:31.9]} 24... b6 {[%clk
0:01:12.3]} 25. Ke2 {[%clk 0:01:28.7]} 25... Be6 {[%clk 0:01:11.6]} 26. Nd2
{[%clk 0:01:18.8]} 26... Kd7 {[%clk 0:01:06.1]} 27. a3 {[%clk 0:01:16.8]} 27...
Kd6 {[%clk 0:01:05.3]} 28. Ke3 {[%clk 0:01:16.4]} 28... Ke5 {[%clk 0:01:04.9]}
29. b4 {[%clk 0:01:04.3]} 29... Bd5 {[%clk 0:00:57.1]} 30. c4 {[%clk 0:00:44.9]}
30... Bc6 {[%clk 0:00:55.4]} 31. bxc5 {[%clk 0:00:44]} 31... bxc5 {[%clk
0:00:54.9]} 32. f4+ {[%clk 0:00:40.5]} 32... Kd6 {[%clk 0:00:52.5]} 33. Ne4+
{[%clk 0:00:35.3]} 33... Bxe4 {[%clk 0:00:50.2]} 34. Kxe4 {[%clk 0:00:36.2]}
34... g6 {[%clk 0:00:25.1]} 35. f5 {[%clk 0:00:27.5]} 35... f6 {[%clk
0:00:24.4]} 36. a4 {[%clk 0:00:17.3]} 36... a5 {[%clk 0:00:16.3]} 37. h3 {[%clk
0:00:17.4]} 37... gxf5+ {[%clk 0:00:15.8]} 38. Kxf5 {[%clk 0:00:17.5]} 38... Ke7
{[%clk 0:00:16.7]} 39. h5 {[%clk 0:00:17.1]} 39... Kf7 {[%clk 0:00:16.1]} 40. h6
{[%clk 0:00:16.8]} 40... Ke7 {[%clk 0:00:16.4]} 41. h4 {[%clk 0:00:17]} 41...
Kf7 {[%clk 0:00:16.7]} 42. h5 {[%clk 0:00:17.3]} 42... Ke7 {[%clk 0:00:17.2]}
43. Ke4 {[%clk 0:00:17.2]} 43... Ke6 {[%clk 0:00:18.1]} 44. Kf4 {[%clk
0:00:17.2]} 44... f5 {[%clk 0:00:18.5]} 45. Kg5 {[%clk 0:00:16.2]} 45... Ke5
{[%clk 0:00:18.8]} 46. Kh4 {[%clk 0:00:16.7]} 46... Kf4 {[%clk 0:00:18.9]} 47.
Kh3 {[%clk 0:00:17.2]} 47... Ke3 {[%clk 0:00:19.2]} 48. Kh4 {[%clk 0:00:17.5]}
48... f4 {[%clk 0:00:19.6]} 49. Kg5 {[%clk 0:00:18.2]} 49... f3 {[%clk
0:00:20.5]} 50. Kf6 {[%clk 0:00:18.9]} 50... f2 {[%clk 0:00:21.4]} 51. Kg7
{[%clk 0:00:19.6]} 51... f1=Q {[%clk 0:00:22.3]} 52. Kxh7 {[%clk 0:00:20.3]}
52... Qf7+ {[%clk 0:00:22.7]} 53. Kh8 {[%clk 0:00:20.3]} 53... Qxh5 {[%clk
0:00:22.5]} 54. h7 {[%clk 0:00:21.2]} 54... Qxh7+ {[%clk 0:00:22.8]} 55. Kxh7
{[%clk 0:00:21.2]} 55... Kd4 {[%clk 0:00:23.7]} 56. Kg6 {[%clk 0:00:21.5]} 56...
Kxc4 {[%clk 0:00:24.6]} 57. Kf5 {[%clk 0:00:22.1]} 57... Kb3 {[%clk 0:00:25.1]}
58. Ke4 {[%clk 0:00:22.9]} 58... c4 {[%clk 0:00:26]} 59. Ke3 {[%clk 0:00:23.1]}
59... c3 {[%clk 0:00:26.9]} 60. Kd3 {[%clk 0:00:23.7]} 60... c2 {[%clk
0:00:27.8]} 61. Kd2 {[%clk 0:00:24.3]} 61... Kb2 {[%clk 0:00:28.3]} 62. Kd3
{[%clk 0:00:24.2]} 62... c1=Q {[%clk 0:00:28.4]} 63. Kd4 {[%clk 0:00:24.5]}
63... Qa1 {[%clk 0:00:28.8]} 64. Ke4 {[%clk 0:00:25.4]} 64... Qxa4+ {[%clk
0:00:29.7]} 65. Ke5 {[%clk 0:00:25.7]} 65... Qb4 {[%clk 0:00:30.6]} 66. Kf5
{[%clk 0:00:26.6]} 66... a4 {[%clk 0:00:31.5]} 67. Kg6 {[%clk 0:00:27.4]} 67...
a3 {[%clk 0:00:32.4]} 68. Kf7 {[%clk 0:00:28.2]} 68... a2 {[%clk 0:00:33.3]} 69.
Kg8 {[%clk 0:00:28.7]} 69... a1=Q {[%clk 0:00:34.2]} 70. Kf7 {[%clk 0:00:27.6]}
70... Qa6 {[%clk 0:00:34.6]} 71. Ke8 {[%clk 0:00:27.2]} 71... Qbb7 {[%clk
0:00:35.5]} 0-1